Workbook

Sheet SUMMARY
E1: 10%
B2: SITE | C2: TOTAL EXCL. CPA + CONTINGENCY + VAT | D2: Contigency 10% | E2: TOTAL INCL. Contigency but Excl. VAT | F2: Estimated CPA
B3: Arnot
B4: Rosherville | C4: =#REF! ->  | D4: =C4*0.1 ->  | E4: =C4+D4 -> 
B5: TOTAL EXCL. VAT | C5: =SUM(C4:C4) ->  | D5: =SUM(D4:D4) ->  | E5: =SUM(E4:E4) -> 
A7: Estimated Price per year | I7: =C5/2 -> 
A8: CPA increase percentage including labour and P&G = 5.4575%
A9: Total for year one | I9: =I7 -> 
A10: Total for year two | G10: 7.0000% | I10: =I9 ->  | J10: =I10*G10 -> 
A11: Total including CPA | I11: =I9+I10+J10 -> 
A12: Contingency 10% | I12: =I11*0.1 -> 
A13: Total including Contingency and CPA estimate | I13: =I12+I11 -> 

Sheet RATES
A1: uma
B2: GRADE | C2: RATES | Q2: GRADE | R2: RATES
B3: T02 | C3: R 91.00 | Q3: T04 | R3: R 101.15
B4: T04 | C4: R 101.15 | Q4: T05 | R4: R 115.66
B5: T05 | C5: R 115.66 | Q5: T05 | R5: R 115.66
B6: T07 | C6: R 121.00 | Q6: T05 | R6: R 115.66
B7: T09 | C7: R 197.46 | Q7: T09 | R7: R 197.46
B8: T10 | C8: R 211.78 | Q8: T12 | R8: R 275.58
B9: T12 | C9: R 275.58 | Q9: T13 | R9: R 315.07
B10: T13 | C10: R 315.07 | Q10: M14 | R10: R 425.30
B11: M14 | C11: R 425.30
B12: P&Gs | Q12: P&Gs
B13: Transport 23 seater | C13: R 100,890.00 | Q13: Transport 23 seater | R13: R 74,023.53
B14: Tools | C14: R 2,100.00 | Q14: Tools | R14: R 2,100.00
B15: Training | C15: R 3,800.00 | Q15: Training | R15: R 3,500.00
B16: Offices/ablution | C16: R 200,000.00 | Q16: Offices/ablution | R16: R 200,000.00
B17: Medicals | C17: R 800.00 | Q17: Medicals | R17: R 800.00
B18: PPE | C18: R 1,828.00 | Q18: PPE | R18: R 2,634.17
B19: Winter jacket | C19: R 900.00
B20: Establishment/de-establishment | C20: R 12,000.00 | Q20: Police Clearance | R20: R 450.00
B21: LDV @ 9000km | C21: R 16,000.00 | Q21: Establishment/de-establishment | R21: R 8,000.00
B22: Cellphone allowance | C22: R 750.00 | Q22: Double cab Bakkie | R22: R 22,199.68
B23: Standby Allowance | C23: 87
B24: Police Clearance | C24: R 450.00
B25: Establishment/de-establishment | C25: R 8,000.00
B26: Double cab Bakkie | C26: R 22,199.68
B28: Months | C28: 60
C29: Total for 60 Months

Sheet Price shedule
A1: ADDENDUM B - Pricing Schedule
A2: Code | B2: Item nr | C2: Description | D2: UOM | E2: Period | F2: Qty | G2: Frequency | H2: Total Quantity | I2: Rate | J2: Total cost
B3: A1 | C3: P&G's
A4: 3000017289 | B4: A1.1 | C4: Vehicle (Total Monthly Vehicle cost including fuel) | D4: Each | E4: Monthly | F4: 1 | G4: 60 | H4: =+G4*F4 -> 60 | J4: =+I4*H4 -> 0
A5: 3000026867 | B5: A1.2 | C5: Shift transport (Night shift) | D5: Each | E5: Monthly | F5: 1 | G5: 60 | H5: =+G5*F5 -> 60 | J5: =+I5*H5 -> 0
A6: 3000016363 | B6: A1.3 | C6: Medicals (Bi-Annual+Exit) | D6: Each | E6: Yr1/Yr3/Y5 | F6: =48+4 -> 52 | G6: 3 | H6: =+G6*F6 -> 156 | J6: 0
A7: 3000049345 | B7: A1.4 | C7: Police Clearance | D7: Each | E7: Once off | F7: =48+4 -> 52 | J7: =+F7*I7 -> 0
A8: Total P&G's | J8: =SUM(J4:J7) -> 0
B9: A.1.5 | C9: PPE
A10: 30000163 | B10: A.1.5.1 | C10: PPE (overall pants x3) | D10: Each | E10: Annually | F10: =52*3 -> 156 | G10: 5 | H10: =+G10*F10 -> 780 | J10: =+I10*H10 -> 0
A11: 0566544 | B11: A.1.5.2 | C11: PPE (overall jacket x3) | D11: Each | E11: Annually | F11: =52*3 -> 156 | G11: 5 | H11: =+G11*F11 -> 780 | J11: 0
A12: 0566700 | B12: A.1.5.3 | C12: PPE (safety boots/shoes x2) | D12: Each | E12: Annually | F12: =52*2 -> 104 | G12: 5 | H12: =+G12*F12 -> 520 | J12: 0
A13: 0222555 | B13: A.1.5.4 | C13: Winter Jackets | D13: Each | E13: Bi-annually | F13: =52*3 -> 156 | G13: 3 | H13: =+G13*F13 -> 468 | J13: 0
A14: Total PPE | J14: =SUM(J9:J13) -> 0
B15: A1.6 | C15: Consumables
A16: 0513594 | B16: A1.6.1 | C16: Telescopic Feather duster | D16: Each | E16: Quarterly | F16: 48 | G16: 20 | H16: =+G16*F16 -> 960 | J16: =+I16*H16 -> 0
A17: 0158461 | B17: A1.6.2 | C17: Bucket 5 l | D17: Each | E17: Quarterly | F17: 48 | G17: 20 | H17: 960 | J17: 0
A18: 0548421 | B18: A1.6.3 | C18: Soft broom | D18: Each | E18: Quarterly | F18: 48 | G18: 20 | H18: 960 | J18: 0
A19: 0514992 | B19: A1.6.4 | C19: Long hair Mop | D19: Each | E19: Quarterly | F19: 48 | G19: 20 | H19: 960 | J19: 0
A20: 0610130 | B20: A1.6.5 | C20: Fiber Cloth x 3 | D20: Each | E20: Monthly | F20: =48*3 -> 144 | G20: 60 | H20: 8,640 | J20: 0
A21: 0546063 | B21: A1.6.6 | C21: Mutton Cloth | D21: Roll | E21: Monthly | F21: 48 | G21: 60 | H21: 2,880 | J21: 0
A22: 0605236 | B22: A1.6.7 | C22: Sponges | D22: Each | E22: Weekly | F22: 48 | G22: 240 | H22: 11,520 | J22: 0
A23: 0548516 | B23: A1.6.8 | C23: Dish cloth | D23: Each | E23: Monthly | F23: 48 | G23: 60 | H23: 2,880 | J23: 0
A24: 0515915 | B24: A1.6.9 | C24: Telescopic Window Cleaner/Squeegee | D24: Each | E24: Quarterly | F24: 48 | G24: 20 | H24: 960 | J24: 0
A25: 0550238 | B25: A1.6.10 | C25: Safety glasses clear | D25: Each | E25: As and when | F25: 18 | G25: 60 | H25: 1,080 | J25: 0
A26: 0609727 | B26: A1.6.11 | C26: Gloves | D26: Each | E26: Weekly | F26: 48 | G26: 240 | H26: 11,520 | J26: 0
A27: 0538192 | B27: A1.6.12 | C27: Sign Caution wet floor | D27: Each | E27: Annually | F27: 48 | G27: 3 | H27: 144 | J27: 0
A28: 0566740 | B28: A1.6.13 | C28: Dust Mask | D28: Each | E28: As and when | F28: 48 | G28: 20 | H28: 960 | J28: 0
A29: 0550676 | B29: A1.6.14 | C29: Earplugs | D29: Each | E29: As and when | F29: 48 | G29: 60 | H29: 2,880 | J29: 0
A30: 0724833 | B30: A1.6.15 | C30: Vacuum bags | D30: Each | E30: Monthly | F30: 20 | G30: 60 | H30: 1,200 | J30: 0
A31: 0605233 | B31: A1.6.16 | C31: Mop bucket with ringer | D31: Each | E31: Once off | F31: 20 | J31: =+F31*I31 -> 0
A32: Total Consumables | J32: =SUM(J16:J31) -> 0
B33: A1.7 | C33: Cleaning Chemicals
A34: 0159845 | B34: A1.7.1 | C34: Dishwashing Liquid 750ml | D34: Each | E34: Monthly | F34: 48 | G34: 120 | H34: =+G34*F34 -> 5,760 | J34: =+I34*H34 -> 0
A35: 0538660 | B35: A1.7.2 | C35: All purpose Cleaner 750ml | D35: Each | E35: Monthly | F35: 48 | G35: 120 | H35: 5,760 | J35: 0
A36: 0159800 | B36: A1.7.3 | C36: Upholstery Cleaner 1l | D36: Each | E36: Monthly | F36: 24 | G36: 60 | H36: 1,440 | J36: 0
A37: 0157669 | B37: A1.7.4 | C37: Bleach 750ml | D37: Each | E37: Monthly | F37: 48 | G37: 120 | H37: 5,760 | J37: 0
A38: 0609803 | B38: A1.7.5 | C38: Thick bleach 750ml | D38: Each | E38: Monthly | F38: 48 | G38: 120 | H38: 5,760 | J38: 0
A39: 0545694 | B39: A1.7.6 | C39: Furniture polish 300ml | D39: Each | E39: Monthly | F39: 48 | G39: 60 | H39: 2,880 | J39: 0
A40: 0610140 | B40: A1.7.7 | C40: Anti Slip Floor Polish 5l | D40: Each | E40: Monthly | F40: 24 | G40: 60 | H40: 1,440 | J40: 0
A41: 0522195 | B41: A1.7.8 | C41: Air Freshener 210ml | D41: Each | E41: Monthly | F41: 48 | G41: 60 | H41: 2,880 | J41: 0
A42: 0159800 | B42: A1.7.9 | C42: Carpet Cleaner 1l | D42: Each | E42: Monthly | F42: 24 | G42: 60 | H42: 1,440 | J42: 0
A43: 0666591 | B43: A1.7.10 | C43: Window Cleaner 750ml | D43: Each | E43: Monthly | F43: 48 | G43: 60 | H43: 2,880 | J43: 0
A44: Total Cleaning Chemicals | J44: =SUM(J34:J43) -> 0
B45: A.1.8 | C45: Tools & Equipment
A46: 0696204 | B46: A1.8.1 | C46: Industrial Wet & Dry Cleaning maschine | D46: Each | E46: Once off | F46: 20 | J46: =+I46*F46 -> 0
A47: 3000026053 | B47: A1.8.2 | C47: Industrial Carpet & upholstery cleaning maschine | D47: Each | E47: Once off | F47: 2 | J47: =+I47*F47 -> 0
A48: 0692416 | B48: A1.8.3 | C48: Industrial polisher/shrubber | D48: Each | E48: Once off | F48: 2 | J48: 0
A49: 0692416 | B49: A1.8.4 | C49: Industrial portable steam cleaner | D49: Each | E49: Once off | F49: 1 | J49: 0
A50: Total Tools & Equipment | J50: =SUM(J46:J49) -> 0
B51: A.1.9 | C51: Administration fee
A52: 3000020467 | B52: A.1.10 | C52: Admin Fee | D52: Each | E52: Monthly | F52: 1 | G52: 60 | H52: =+G52*F52 -> 60 | J52: =+I52*H52 -> 0
A53: Total Administration fee | J53: =+J52 -> 0
B54: B1 | C54: Skill Type
A55: 3000020377 | B55: B1.1 | C55: Site supervisor | D55: Hour | E55: Monthly | F55: =173*2 -> 346 | G55: 60 | H55: =+G55*F55 -> 20,760 | J55: =+I55*H55 -> 0
A56: 3000017223 | B56: B1.2 | C56: General worker Hygiene Services | D56: Hour | E56: Monthly | F56: =173*40 -> 6,920 | G56: 60 | H56: =+G56*F56 -> 415,200 | J56: 0
A57: 3000017224 | B57: B1.3 | C57: General worker Shift | D57: Hour | E57: Monthly | F57: =8*183 -> 1,464 | G57: 60 | H57: =+G57*F57 -> 87,840 | J57: 0
A58: 3000020377 | B58: B1.4 | C58: Site supervisor Shift | D58: Hour | E58: Monthly | F58: =173*2 -> 346 | G58: 60 | H58: 20,760 | J58: 0
A59: 3000017223 | B59: B1.5 | C59: Shift allowance General worker | D59: Hour | E59: Monthly | F59: =183*8 -> 1,464 | G59: 60 | H59: 87,840 | J59: 0
A60: 3000020377 | B60: B1.6 | C60: Shift allowance Supervisor | D60: Hour | E60: Monthly | F60: =2*183 -> 366 | G60: 60 | H60: 21,960 | J60: 0
A61: 3000017993 | B61: B1.7 | C61: Overtime x 1.5 Hygiene worker | D61: Hour | E61: Monthly | F61: 40 | G61: 60 | H61: 2,400 | J61: 0
A62: 3000017992 | B62: B1.8 | C62: Overtime x 2 Hygiene worker | D62: Hour | E62: Monthly | F62: 40 | G62: 60 | H62: 2,400 | J62: 0
A63: 3000017993 | B63: B1.9 | C63: Overtime x 1.5 Hygiene worker | D63: Hour | E63: Monthly | F63: 40 | G63: 60 | H63: 2,400 | J63: 0
A64: 3000017992 | B64: B1.10 | C64: Overtime x 2 Hygiene worker | D64: Hour | E64: Monthly | F64: 40 | G64: 60 | H64: 2,400 | J64: 0
A65: Total Skills | J65: =SUM(J55:J64) -> 0
A66: Total | J66: =+J65+J53+J50+J44+J32+J14+J8 -> 0
B67: *** | C67: Administration fee to be based on the total the monthly invoice. Percentage will form part of negotiations.
